bitfinex-derivatives/quotes_BNBF0:USTF0_20241225
["timestamp","ask_amount","ask_price","bid_price","bid_amount"]
[1735161546618,0.28638114,698.37,696.53,0.28713766]
[1735161546817,0.26359488,698.36,696.53,0.28713766]
[1735161547024,0.28639344,698.34,696.53,0.28713766]
[1735161547323,0.26359488,698.33,696.53,0.28713766]
[1735161547522,0.28640164,698.32,696.53,0.28713766]
[1735161547724,0.26359488,698.31,696.53,0.28713766]
[1735161547919,0.28640985,698.3,696.53,0.28713766]
[1735161548124,0.26359488,698.29,696.53,0.28713766]
[1735161550621,0.28641805,698.28,696.53,0.28713766]
[1735161550822,0.26359488,698.27,696.53,0.28713766]
[1735161552025,0.28642625,698.26,696.53,0.28713766]
[1735161552226,0.26359909,698.25,696.53,0.28713766]
[1735161552722,0.28643446,698.24,696.53,0.28713766]
[1735161552923,0.26359909,698.23,696.53,0.28713766]
[1735161553723,0.28643446,698.24,696.53,0.28713766]
[1735161560932,0.26360279,698.23,696.53,0.28713766]
[1735161561134,0.28644266,698.22,696.53,0.28713766]
[1735161563736,0.26358562,698.21,696.53,0.28713766]
[1735161566030,0.28645087,698.2,696.53,0.28713766]
[1735161566233,0.26358562,698.19,696.53,0.28713766]
[1735161566732,0.28645907,698.18,696.53,0.28713766]
[1735161566935,0.26358562,698.17,696.53,0.28713766]
[1735161567136,0.28646728,698.16,696.53,0.28713766]
[1735161567340,0.26358562,698.15,696.53,0.28713766]
[1735161567540,0.28647549,698.14,696.53,0.28713766]
[1735161567842,0.26361818,698.13,696.53,0.28713766]
[1735161568042,0.28648369,698.12,696.53,0.28713766]
[1735161568342,0.26361818,698.11,696.53,0.28713766]
[1735161568534,0.28648369,698.12,696.53,0.28713766]
[1735161568739,0.26360561,698.11,696.53,0.28713766]
[1735161569036,0.2864919,698.1,696.53,0.28713766]
[1735161569239,0.263601,698.09,696.53,0.28713766]
[1735161569438,0.28650011,698.08,696.53,0.28713766]
[1735161570644,0.26360834,698.07,696.53,0.28713766]
[1735161571545,1.04794433,698.06,696.53,0.28713766]
[1735161571739,0.26360834,698.05,696.53,0.28713766]
[1735161572948,1.2575332,697.99,696.53,0.28713766]
[1735161573152,1.04794433,697.82,696.53,0.28713766]
[1735161573642,1.04794433,697.79,696.53,0.28713766]
[1735161575344,1.04794433,697.85,696.53,0.28713766]
[1735161576651,1.04794433,697.93,696.53,0.28713766]
[1735161577246,1.04794433,697.89,696.53,0.28713766]
[1735161577848,0.28650011,698.08,696.53,0.28713766]
[1735161578045,0.26361878,698.07,696.53,0.28713766]
[1735161578546,1.05356527,697.86,696.53,0.28713766]
[1735161579350,1.05356527,697.87,696.53,0.28713766]
[1735161580149,1.05356527,697.86,696.53,0.28713766]
[1735161580852,1.05356527,697.88,696.53,0.28713766]
[1735161582353,0.28650011,698.08,696.53,0.28713766]
[1735161582554,0.26359349,698.07,696.53,0.28713766]
[1735161582859,1.05377925,698.02,696.53,0.28713766]
[1735161583656,0.28650011,698.08,696.53,0.28713766]
[1735161595058,0.28650011,698.08,696.62,1.07439378]
[1735161595965,0.28650011,698.08,696.59,1.07439378]
[1735161596864,0.28650011,698.08,696.55,1.07439378]
[1735161598064,0.28650011,698.08,696.53,0.28713766]
[1735161622989,1.05377925,698.73,696.53,0.28713766]
[1735161623190,0.26346347,698.72,696.53,0.28713766]
[1735161623491,0.28624588,698.7,696.69,1.07439378]
[1735161623688,0.26346347,698.69,696.69,1.07439378]
[1735161624294,0.2634735,698.68,696.65,1.07439378]
[1735161624491,0.2634735,698.69,696.65,1.07439378]
[1735161624687,0.2634735,698.68,696.65,1.07439378]
[1735161624886,0.28624588,698.7,696.64,1.07439378]
[1735161624887,0.2634735,698.67,696.64,1.07439378]
[1735161625191,0.26347127,698.66,696.66,0.28708408]
[1735161625392,0.26347127,698.65,696.66,0.28708408]
[1735161625590,0.28627456,698.63,696.66,0.28708408]
[1735161625791,0.26347127,698.62,696.68,1.07439378]
[1735161626192,0.26347127,698.62,696.7,0.2870676]
[1735161626393,0.28628685,698.6,696.7,0.2870676]
[1735161626693,0.26347127,698.59,696.7,0.2870676]
[1735161626889,0.28629505,698.58,696.7,0.2870676]
[1735161627089,0.26347127,698.57,696.7,0.2870676]
[1735161627291,0.28630325,698.56,696.7,0.2870676]
[1735161627488,0.26347127,698.55,696.7,0.2870676]
[1735161627706,0.28631144,698.54,696.7,0.2870676]
[1735161627890,0.26347127,698.53,696.7,0.2870676]
[1735161628193,0.28631964,698.52,696.7,0.2870676]
[1735161628498,0.26347127,698.51,696.7,0.2870676]
[1735161629291,0.26347127,698.51,696.71,1.07439378]
[1735161629496,0.26347127,698.51,696.73,0.28705524]
[1735161629793,0.26349264,698.5,696.73,0.28705524]
[1735161629994,0.26349264,698.49,696.73,0.28705524]
[1735161630194,0.54982458,698.49,696.73,0.28705524]
[1735161630394,0.26349264,698.48,696.73,0.28705524]
[1735161632698,0.28633194,698.49,696.73,0.28705524]
[1735161633399,0.26349639,698.48,696.73,0.28705524]
[1735161633608,0.28634014,698.47,696.73,0.28705524]
[1735161633807,0.26349639,698.46,696.73,0.28705524]
[1735161634106,0.28634834,698.45,696.73,0.28705524]
[1735161647508,1.2645351,699.04,696.73,0.28705524]
[1735161647708,0.28611484,699.02,696.73,0.28705524]
[1735161647909,0.2633319,699.01,696.73,0.28705524]
[1735161648306,0.2633319,699.01,696.83,1.06852225]
[1735161648711,0.28611484,699.02,696.83,1.06852225]
[1735161648907,0.26336462,699.0,696.77,1.06852225]
[1735161649110,0.26336462,698.99,696.77,1.06852225]
[1735161649313,0.28611484,699.02,696.77,1.06852225]
[1735161649314,0.26336462,698.98,696.77,1.06852225]
[1735161649508,0.28611484,699.02,696.75,1.06852225]
[1735161649812,0.26340254,699.01,696.75,1.06852225]
[1735161650407,0.26340254,699.01,696.73,0.28705524]
[1735161653615,0.28612712,698.99,696.73,0.28705524]
[1735161653813,0.26340254,698.98,696.73,0.28705524]
[1735161654217,0.2633881,698.97,696.73,0.28705524]
[1735161654519,0.2633881,698.96,696.73,0.28705524]
[1735161654719,0.28614759,698.94,696.73,0.28705524]
[1735161654915,0.2633881,698.93,696.73,0.28705524]
[1735161655919,0.2633881,698.93,696.85,1.06852225]
[1735161656618,0.2633881,698.93,696.83,1.06852225]
[1735161657014,0.2633759,698.92,696.83,1.06852225]
[1735161657216,0.2633759,698.91,696.83,1.06852225]
[1735161657418,0.2633759,698.9,696.83,1.06852225]
[1735161657614,0.2633759,698.89,696.82,1.06852225]
[1735161657818,0.2633759,698.88,696.82,1.06852225]
[1735161658015,0.2633759,698.87,696.82,1.06852225]
[1735161658219,0.2633759,698.86,696.82,1.06852225]
[1735161658420,0.2633759,698.85,696.82,1.06852225]
[1735161658622,0.2633759,698.84,696.79,1.06852225]
[1735161658819,0.2633759,698.83,696.79,1.06852225]
[1735161659023,0.2633759,698.82,696.79,1.06852225]
[1735161659223,0.2633759,698.81,696.79,1.06852225]
[1735161659424,0.28614759,698.94,696.83,1.06852225]
[1735161659919,0.26336414,698.93,696.83,1.06852225]
[1735161660119,0.26336414,698.93,696.73,0.28705524]
[1735161662422,0.28614759,698.94,696.73,0.28705524]
[1735161663424,0.28614759,698.94,696.76,1.06852225]
[1735161664322,0.28614759,698.94,696.75,1.06852225]
[1735161664732,0.26330998,698.93,696.75,1.06852225]
[1735161665020,0.28614759,698.94,696.76,1.06852225]
[1735161665321,0.26330433,698.93,696.76,1.06852225]
[1735161665525,0.28614759,698.94,696.76,1.06852225]
[1735161665827,0.28614759,698.94,696.97,1.06852225]
[1735161666822,0.28614759,698.94,696.73,0.28705524]
[1735161666823,0.28614759,698.94,697.01,1.06852225]
[1735161667725,0.28614759,698.94,697.06,1.06852225]
[1735161668323,0.28614759,698.94,697.07,1.06852225]
[1735161669121,0.28614759,698.94,697.06,1.06852225]
[1735161669726,0.28614759,698.94,697.05,1.06852225]
[1735161670623,0.28614759,698.94,697.07,0.28691523]
[1735161670823,0.28614759,698.94,697.07,1.35543748]
[1735161672126,0.28614759,698.94,697.07,0.28691523]
[1735161678028,0.26330118,698.93,697.07,0.28691523]
[1735161678425,0.28614759,698.94,697.07,0.28691523]
[1735161678931,0.26333753,698.93,697.07,0.28691523]
[1735161680532,0.26337151,698.92,697.07,0.28691523]
[1735161680833,0.26337151,698.91,697.07,0.28691523]
[1735161681032,0.26337151,698.9,697.07,0.28691523]
[1735161681235,0.28614759,698.94,697.07,0.28691523]
[1735161681430,0.26336289,698.93,697.07,0.28691523]
[1735161683334,0.2633663,698.92,697.07,0.28691523]
[1735161683531,0.2633663,698.91,697.07,0.28691523]
[1735161683831,0.2633663,698.9,697.07,0.28691523]
[1735161684037,0.26336973,698.89,697.07,0.28691523]
[1735161684231,0.26336973,698.88,697.07,0.28691523]
[1735161684434,0.26336973,698.87,697.07,0.28691523]
[1735161684636,0.26336973,698.86,697.07,0.28691523]
[1735161684937,0.26336973,698.85,697.07,0.28691523]
[1735161685137,0.26336973,698.84,697.07,0.28691523]
[1735161685338,0.26336973,698.83,697.07,0.28691523]
[1735161685539,0.26336973,698.82,697.07,0.28691523]
[1735161685739,0.26336973,698.81,697.07,0.28691523]
[1735161685938,0.28614759,698.94,697.07,0.28691523]
[1735161686140,0.26336515,698.93,697.07,0.28691523]
[1735161688839,0.26337142,698.92,697.07,0.28691523]
[1735161689038,0.26337142,698.91,697.07,0.28691523]
[1735161689234,0.26337142,698.9,697.07,0.28691523]
[1735161689435,0.26337142,698.89,697.07,0.28691523]
[1735161689741,0.26337142,698.88,697.07,0.28691523]
[1735161689942,0.26337142,698.87,697.07,0.28691523]
[1735161690142,0.26337142,698.86,697.07,0.28691523]
[1735161690344,0.28614759,698.94,697.07,0.28691523]
[1735161690345,0.26337142,698.85,697.07,0.28691523]
[1735161690638,0.28614759,698.94,697.07,0.28691523]
[1735161690639,0.26337142,698.84,697.07,0.28691523]
[1735161690841,0.26337142,698.83,697.07,0.28691523]
[1735161691036,0.26337142,698.82,697.07,0.28691523]
[1735161691239,0.28614759,698.94,697.07,0.28691523]
[1735161691240,0.26337142,698.81,697.07,0.28691523]
[1735161691440,0.28614759,698.94,697.07,0.28691523]
[1735161691641,0.2633658,698.93,697.07,0.28691523]
[1735161696840,0.28614759,698.94,697.07,0.28691523]
[1735161697041,0.26332571,698.93,697.07,0.28691523]
[1735161697644,0.28614759,698.94,697.07,0.28691523]
[1735161697845,0.26332812,698.93,697.07,0.28691523]
[1735161699944,0.26332087,698.92,697.07,0.28691523]
[1735161700145,0.54948074,698.91,697.07,0.28691523]
[1735161700340,0.28616397,698.9,697.07,0.28691523]
[1735161700742,0.26331747,698.89,697.07,0.28691523]
[1735161700938,0.28617216,698.88,697.07,0.28691523]
[1735161704447,0.28617216,698.88,697.11,1.06852225]
[1735161705443,0.28617216,698.88,697.07,0.28691523]
[1735161710458,0.28617216,698.88,697.09,1.06852225]
[1735161710760,0.28617216,698.88,697.11,0.28689876]
[1735161711260,0.28617216,698.88,697.11,1.35542101]
[1735161712060,0.28617216,698.88,697.13,1.06852225]
[1735161712261,0.28617216,698.88,697.15,0.2868823]
[1735161713759,0.28617216,698.88,697.16,1.06852225]
[1735161714964,0.28617216,698.88,697.18,1.06852225]
[1735161715769,0.28617216,698.88,697.2,1.06852225]
[1735161716669,0.28617216,698.88,697.19,1.06852225]
[1735161717662,0.28617216,698.88,697.21,0.28685761]
[1735161718062,0.28617216,698.88,697.21,1.35537986]
[1735161719063,0.28617216,698.88,697.26,1.06852225]
[1735161719268,0.28617216,698.88,697.28,0.28682882]
[1735161723165,0.28617216,698.88,697.33,1.06852225]
[1735161723969,0.28617216,698.88,697.29,1.06852225]
[1735161724672,0.28617216,698.88,697.31,0.28681648]
[1735161725870,0.28617216,698.88,697.33,1.06852225]
[1735161726666,0.28617216,698.88,697.31,0.28681648]
[1735161729273,0.28617216,698.88,697.32,1.06852225]
[1735161729474,0.28617216,698.88,697.34,0.28680414]
[1735161734474,0.28617216,698.88,697.35,1.06852225]
[1735161734975,0.28617216,698.88,697.37,0.2867918]
[1735161736782,0.28617216,698.88,697.52,1.06852225]
[1735161737480,0.28617216,698.88,697.54,1.06852225]
[1735161738077,0.28617216,698.88,697.55,1.06852225]
[1735161739075,0.28617216,698.88,697.58,1.06852225]
[1735161739882,0.28617216,698.88,697.53,0.28672601]
[1735161739883,0.28617216,698.88,697.57,1.06852225]
[1735161740881,0.28617216,698.88,697.54,1.06852225]
[1735161741676,0.28617216,698.88,697.53,0.28672601]
[1735161743278,0.26327753,698.87,697.53,0.28672601]
[1735161743485,0.28617216,698.88,697.53,0.28672601]
[1735161761497,0.26333692,698.87,697.53,0.28672601]
[1735161761691,0.28618035,698.86,697.53,0.28672601]
[1735161762296,0.26335069,698.85,697.53,0.28672601]
[1735161762495,0.28618854,698.84,697.53,0.28672601]
[1735161762896,0.26335321,698.83,697.53,0.28672601]
[1735161763099,0.28619673,698.82,697.53,0.28672601]
[1735161765895,0.26331611,698.81,697.53,0.28672601]
[1735161766898,0.28619673,698.82,697.53,0.28672601]
[1735161766899,0.26332297,698.8,697.53,0.28672601]
[1735161767093,0.26332297,698.79,697.53,0.28672601]
[1735161767298,0.26332297,698.78,697.53,0.28672601]
[1735161767497,0.26332297,698.77,697.53,0.28672601]
[1735161767697,0.26332297,698.81,697.53,0.28672601]
[1735161767898,0.26331953,698.8,697.53,0.28672601]
[1735161768100,0.26331953,698.79,697.53,0.28672601]
[1735161768297,0.26331953,698.78,697.53,0.28672601]
[1735161768497,0.28619673,698.82,697.53,0.28672601]
[1735161768695,0.26332426,698.81,697.53,0.28672601]
[1735161771301,0.26330895,698.8,697.53,0.28672601]
[1735161771494,0.26330895,698.79,697.53,0.28672601]
[1735161771697,0.28619673,698.82,697.53,0.28672601]
[1735161771900,0.26330966,698.81,697.53,0.28672601]
[1735161772299,0.28619673,698.82,697.53,0.28672601]
[1735161791619,1.04990032,699.49,697.53,0.28672601]
[1735161791815,0.6362089,699.77,697.53,0.28672601]
[1735161791816,0.28593077,699.47,697.53,0.28672601]
[1735161792014,0.26317942,699.46,697.53,0.28672601]
[1735161792220,0.26318969,699.45,697.53,0.28672601]
[1735161792415,0.28593077,699.47,697.53,0.28672601]
[1735161792416,0.26318969,699.44,697.53,0.28672601]
[1735161792618,0.26318969,699.43,697.53,0.28672601]
[1735161792920,0.26318969,699.42,697.53,0.28672601]
[1735161793223,0.26318969,699.41,697.53,0.28672601]
[1735161793419,0.26318969,699.4,697.53,0.28672601]
[1735161793618,0.26318969,699.39,697.53,0.28672601]
[1735161793820,0.26318969,699.38,697.53,0.28672601]
[1735161794015,0.26318969,699.37,697.53,0.28672601]
[1735161794222,0.26318969,699.36,697.53,0.28672601]
[1735161794420,0.28598392,699.34,697.53,0.28672601]
[1735161794623,0.26318969,699.33,697.53,0.28672601]
[1735161794924,0.26318317,699.32,697.53,0.28672601]
[1735161795220,0.26318317,699.31,697.53,0.28672601]
[1735161795416,0.26318317,699.3,697.53,0.28672601]
[1735161795622,0.26318317,699.29,697.53,0.28672601]
[1735161795924,0.26318317,699.28,697.53,0.28672601]
[1735161796125,0.26318317,699.27,697.53,0.28672601]
[1735161796325,0.28598392,699.34,697.53,0.28672601]
[1735161796624,0.26315337,699.33,697.53,0.28672601]
[1735161797320,0.28598392,699.34,697.53,0.28672601]
[1735161797525,0.26314198,699.33,697.53,0.28672601]
[1735161797724,0.26315461,699.33,697.53,0.28672601]
[1735161799127,0.28598392,699.34,697.53,0.28672601]
[1735161807335,0.26313594,699.33,697.53,0.28672601]
[1735161807531,0.54912395,699.33,697.53,0.28672601]
[1735161807733,0.26313594,699.32,697.53,0.28672601]
[1735161808331,0.28598801,699.33,697.59,1.06719213]
[1735161808531,0.28598801,699.33,697.61,0.28669313]
[1735161818339,0.26317687,699.32,697.61,0.28669313]
[1735161819845,0.26321005,699.31,697.61,0.28669313]
[1735161820042,0.26321005,699.3,697.61,0.28669313]
[1735161820342,0.26320261,699.29,697.61,0.28669313]
[1735161820543,0.26320261,699.28,697.61,0.28669313]
[1735161820743,0.26320261,699.27,697.61,0.28669313]
[1735161820941,0.26320261,699.26,697.61,0.28669313]
[1735161821138,0.26320261,699.25,697.61,0.28669313]
[1735161821341,0.26320261,699.24,697.61,0.28669313]
[1735161821541,0.54923152,699.23,697.61,0.28669313]
[1735161821735,0.54923561,699.22,697.61,0.28669313]
[1735161821939,0.5492397,699.21,697.61,0.28669313]
[1735161822137,1.05073573,699.49,697.61,0.28669313]
[1735161822138,0.28604118,699.2,697.61,0.28669313]
[1735161822535,0.26319979,699.19,697.61,0.28669313]
[1735161826737,0.28604937,699.18,697.61,0.28669313]
[1735161827843,0.2632471,699.17,697.61,0.28669313]
[1735161828237,0.26324677,699.16,697.61,0.28669313]
[1735161828441,0.54930841,699.15,697.61,0.28669313]
[1735161828638,0.28606982,699.13,697.61,0.28669313]
[1735161828841,0.26324677,699.12,697.61,0.28669313]
[1735161829041,0.28607801,699.11,697.61,0.28669313]
[1735161834644,0.26328702,699.1,697.61,0.28669313]
[1735161834950,0.28609029,699.08,697.61,0.28669313]
[1735161835150,0.26328702,699.07,697.61,0.28669313]
[1735161835749,0.28610256,699.05,697.61,0.28669313]
[1735161835953,0.26330265,699.04,697.61,0.28669313]
[1735161836154,0.28611484,699.02,697.61,0.28669313]
[1735161836450,0.26330265,699.01,697.61,0.28669313]
[1735161836648,0.28612303,699.0,697.61,0.28669313]
[1735161836854,0.26329087,698.99,697.61,0.28669313]
[1735161837148,0.28613121,698.98,697.61,0.28669313]
[1735161837346,0.26329087,698.97,697.61,0.28669313]
[1735161837546,0.2861394,698.96,697.61,0.28669313]
[1735161837751,0.26329087,698.95,697.61,0.28669313]
[1735161838050,0.28614759,698.94,697.61,0.28669313]
[1735161838250,0.26329087,698.93,697.61,0.28669313]
[1735161838448,0.28615578,698.92,697.61,0.28669313]
[1735161838653,0.26329087,698.91,697.61,0.28669313]
[1735161838848,0.54945091,698.9,697.61,0.28669313]
[1735161839056,0.549455,698.89,697.61,0.28669313]
[1735161839251,0.26328694,698.88,697.61,0.28669313]
[1735161839851,0.28617625,698.87,697.61,0.28669313]
[1735161841456,0.26328926,698.86,697.61,0.28669313]
[1735161841656,0.28618444,698.85,697.61,0.28669313]
[1735161846860,0.27184367,698.85,697.61,0.28669313]
[1735161853464,0.26330944,698.84,697.61,0.28669313]
[1735161853957,0.28619263,698.83,697.61,0.28669313]
[1735161886684,0.26333481,698.82,697.61,0.28669313]
[1735161887285,0.26333481,698.82,697.01,1.07019147]
[1735161887286,0.26335876,698.81,697.01,1.07019147]
[1735161887490,0.26335876,698.8,697.02,0.28693581]
[1735161887791,0.26335876,698.79,697.02,0.28693581]
[1735161887992,0.26335876,698.78,697.02,0.28693581]
[1735161888194,0.26335876,698.77,697.02,0.28693581]
[1735161888490,0.26335876,698.76,697.02,0.28693581]
[1735161888691,0.28619263,698.83,697.02,0.28693581]
[1735161888692,0.26335876,698.75,697.02,0.28693581]
[1735161888987,0.26335876,698.74,697.02,0.28693581]
[1735161889191,0.26335876,698.73,697.02,0.28693581]
[1735161889395,0.26335876,698.72,697.02,0.28693581]
[1735161889589,0.26335876,698.71,697.02,0.28693581]
[1735161889794,0.26335876,698.7,697.02,0.28693581]
[1735161889988,0.26339945,698.69,697.02,0.28693581]
[1735161890193,0.26339945,698.68,697.02,0.28693581]
[1735161890493,0.26339945,698.67,697.02,0.28693581]
[1735161890795,0.26339945,698.66,697.02,0.28693581]
[1735161890993,0.28619263,698.83,697.02,0.28693581]
[1735161891293,0.26340147,698.82,697.02,0.28693581]
[1735161892596,0.28620492,698.8,697.02,0.28693581]
[1735161892896,0.26340172,698.79,697.02,0.28693581]
[1735161893195,0.28621721,698.77,697.02,0.28693581]
[1735161893394,0.26340172,698.76,697.02,0.28693581]
[1735161893595,0.54962635,698.75,697.02,0.28693581]
[1735161893788,0.54963044,698.74,697.02,0.28693581]
[1735161893993,0.54963454,698.73,697.02,0.28693581]
[1735161894195,0.54963864,698.72,697.02,0.28693581]
[1735161894396,1.05487362,699.16,697.02,0.28693581]
[1735161894397,0.54964273,698.71,697.02,0.28693581]
[1735161894596,0.26340095,698.7,697.02,0.28693581]
[1735161898194,0.54964625,698.69,697.02,0.28693581]
[1735161898399,0.54965034,698.68,697.02,0.28693581]
[1735161898594,0.54965444,698.67,697.02,0.28693581]
[1735161898794,0.28626227,698.66,697.02,0.28693581]
[1735161912408,0.28626227,698.66,697.06,1.07019147]
[1735161913610,0.28626227,698.66,697.05,1.07019147]
[1735161914610,0.28626227,698.66,697.03,1.07019147]
[1735161915407,0.28626227,698.66,697.04,1.07019147]
[1735161915804,0.28626227,698.66,697.06,0.28691934]
[1735161927314,0.26340432,698.65,697.06,0.28691934]
[1735161927521,0.28626227,698.66,697.06,0.28691934]
[1735161928515,0.26339412,698.65,697.06,0.28691934]
[1735161931022,0.28626227,698.66,697.06,0.28691934]
[1735161946732,0.26336519,698.65,697.06,0.28691934]
[1735161947131,0.28626227,698.66,697.06,0.28691934]
[1735161948439,0.28626227,698.66,697.06,1.35499033]
[1735161949034,0.28626227,698.66,697.06,0.28691934]
[1735161967050,0.28626227,698.66,697.09,1.06807099]
[1735161967454,0.28626227,698.66,697.11,0.28689876]
[1735161971758,0.28626227,698.66,697.13,1.06807099]
[1735161972556,0.28626227,698.66,697.11,0.28689876]
[1735161973557,0.28626227,698.66,697.16,1.06807099]
[1735161973756,0.28626227,698.66,697.18,0.28686996]
[1735161976662,1.05050456,699.59,697.18,0.28686996]
[1735161976964,0.2632289,699.58,697.18,0.28686996]
[1735161977155,0.2859226,699.49,697.18,0.28686996]
[1735161977355,0.2632289,699.48,697.18,0.28686996]
[1735161978858,0.26326878,699.47,697.18,0.28686996]
[1735161979058,0.26326878,699.46,697.18,0.28686996]
[1735161979252,1.33642716,699.49,697.18,0.28686996]
[1735161979253,0.26326878,699.45,697.18,0.28686996]
[1735161979458,0.26326878,699.44,697.18,0.28686996]
[1735161979656,0.26326878,699.43,697.18,0.28686996]
[1735161979856,0.26326878,699.42,697.18,0.28686996]
[1735161980061,0.26326878,699.41,697.18,0.28686996]
[1735161980358,0.26326878,699.4,697.18,0.28686996]
[1735161980562,0.26326878,699.39,697.18,0.28686996]
[1735161980761,0.26326878,699.38,697.18,0.28686996]
[1735161980962,0.26326878,699.37,697.18,0.28686996]
[1735161981163,0.26326878,699.36,697.18,0.28686996]
[1735161981364,0.26326878,699.35,697.18,0.28686996]
[1735161981562,1.05050456,699.42,697.18,0.28686996]
[1735161981763,0.26327024,699.41,697.18,0.28686996]
[1735161982068,1.3137748,699.41,697.18,0.28686996]
[1735161982264,0.26327024,699.4,697.18,0.28686996]
[1735161982562,0.26325445,699.39,697.18,0.28686996]
[1735161982758,0.26325445,699.38,697.18,0.28686996]
[1735161982963,0.26325445,699.37,697.18,0.28686996]
[1735161983163,0.26325445,699.36,697.18,0.28686996]
[1735161983363,0.26325445,699.35,697.18,0.28686996]
[1735161983565,0.26325445,699.34,697.18,0.28686996]
[1735161983768,0.26325445,699.33,697.18,0.28686996]
[1735161983964,1.31375901,699.32,697.18,0.28686996]
[1735161984265,0.26325445,699.31,697.18,0.28686996]
[1735161984459,0.26325994,699.3,697.18,0.28686996]
[1735161984660,1.05050456,699.32,697.18,0.28686996]
[1735161984661,0.26325994,699.29,697.18,0.28686996]
[1735161984968,0.26325994,699.28,697.18,0.28686996]
[1735161985264,0.26325994,699.27,697.18,1.35494095]
[1735161985565,0.26325994,699.26,697.18,1.35494095]
[1735161985765,0.26325994,699.25,697.18,1.35494095]
[1735161985965,0.26325994,699.24,697.18,1.35494095]
[1735161986160,0.26325994,699.23,697.18,1.35494095]
[1735161986361,0.26325994,699.22,697.18,1.35494095]
[1735161986562,0.26325994,699.21,697.18,1.35494095]
[1735161986866,0.26325994,699.2,697.22,1.06807099]
[1735161987165,0.26322249,699.19,697.22,1.06807099]
[1735161987365,0.26322249,699.18,697.22,1.06807099]
[1735161987668,0.26322249,699.17,697.26,1.06807099]
[1735161987865,1.05050456,699.44,697.26,1.06807099]
[1735161987866,0.26322249,699.16,697.26,1.06807099]
[1735161988160,0.26322249,699.15,697.26,1.06807099]
[1735161988466,1.05050456,699.45,697.33,1.06807099]
[1735161988666,0.26317168,699.44,697.33,1.06807099]
[1735161989362,0.26317168,699.44,697.18,0.28686996]
[1735161989363,0.26317168,699.44,697.43,0.28676713]
[1735161989567,0.26317168,699.43,697.43,0.28676713]
[1735161989762,0.26315971,699.42,697.43,0.28676713]
[1735161989966,0.26315971,699.41,697.43,0.28676713]
[1735161990169,0.26315971,699.4,697.43,0.28676713]
[1735161990467,0.2859226,699.49,697.43,0.28676713]
[1735161990668,0.26316177,699.48,697.43,0.28676713]
[1735161991869,0.28593486,699.46,697.43,0.28676713]
[1735161992062,0.26316177,699.45,697.43,0.28676713]
[1735161992661,0.28594304,699.44,697.43,0.28676713]
[1735161992866,0.26316177,699.43,697.43,0.28676713]
[1735161993164,0.28595121,699.42,697.43,0.28676713]
[1735161993370,0.26316177,699.41,697.43,0.28676713]
[1735161993568,0.28595939,699.4,697.43,0.28676713]
[1735161993763,0.26316177,699.39,697.43,0.28676713]
[1735161993963,0.28596757,699.38,697.43,0.28676713]
[1735161994170,0.26316177,699.37,697.43,0.28676713]
[1735161994365,0.28597574,699.36,697.43,0.28676713]
[1735161994568,0.26317541,699.35,697.43,0.28676713]
[1735161995167,0.28598392,699.34,697.43,0.28676713]
[1735161996367,0.26317841,699.33,697.43,0.28676713]
[1735161996566,0.28598392,699.34,697.43,0.28676713]
[1735161996772,0.2859921,699.32,697.43,0.28676713]
[1735162004270,0.26316339,699.31,697.43,0.28676713]
[1735162004471,0.54916969,699.3,697.43,0.28676713]
[1735162004671,0.28600437,699.29,697.43,0.28676713]
[1735162008075,0.26316783,699.28,697.43,0.28676713]
[1735162008272,0.28601255,699.27,697.43,0.28676713]
[1735162008875,0.26316865,699.26,697.43,0.28676713]
[1735162009273,0.28602073,699.25,697.43,0.28676713]
[1735162009878,0.26316865,699.24,697.43,0.28676713]
[1735162010077,0.28602891,699.23,697.43,0.28676713]
[1735162013584,0.26317382,699.22,697.43,0.28676713]
[1735162013777,0.28603709,699.21,697.43,0.28676713]
[1735162014078,0.26318141,699.2,697.43,0.28676713]
[1735162014279,0.28604528,699.19,697.43,0.28676713]
[1735162014584,0.26317727,699.18,697.43,0.28676713]
[1735162014786,0.54922664,699.18,697.43,0.28676713]
[1735162014986,0.26317727,699.17,697.43,0.28676713]
[1735162015384,0.26317727,699.17,697.48,1.06807099]
[1735162015688,0.26317473,699.16,697.5,0.28673835]
[1735162015886,0.26317473,699.15,697.5,0.28673835]
[1735162016087,0.26317473,699.14,697.5,0.28673835]
[1735162016289,0.26317473,699.13,697.54,1.06807099]
[1735162016482,0.26317473,699.12,697.56,0.28671368]
[1735162016790,0.28604937,699.18,697.56,0.28671368]
[1735162017184,0.28604937,699.18,697.57,1.06807099]
[1735162017385,0.28604937,699.18,697.58,0.28670546]
[1735162020183,0.28604937,699.18,697.6,1.06807099]
[1735162020383,0.28604937,699.18,697.61,0.28669313]
[1735162021189,0.28604937,699.18,697.61,1.35476412]
[1735162022090,0.28604937,699.18,697.65,1.06807099]
[1735162022491,0.28604937,699.18,697.66,0.28667259]
[1735162022893,0.28604937,699.18,697.7,1.06807099]
[1735162023090,0.28604937,699.18,697.71,0.28665204]
[1735162024392,0.28604937,699.18,697.72,1.06807099]
[1735162024591,0.28604937,699.18,697.73,0.28664383]
[1735162025188,0.28604937,699.18,697.73,1.35471482]
[1735162026196,0.28604937,699.18,697.73,0.28664383]
[1735162027098,1.05050456,699.17,697.78,1.06807099]
[1735162028493,0.28604937,699.18,697.73,0.28664383]
[1735162028699,0.28604937,699.18,697.79,0.28661918]
[1735162080737,1.05050456,700.03,697.79,0.28661918]